lending/lending_fUSD_20240219
["ID","MTS","AMOUNT","RATE_DAILY","PERIOD"]
[314429398,1708336241358,-1260.38,0.00043,4]
[314429399,1708336241367,-1260.38,0.00043,4]
[314429400,1708336241376,-1260.38,0.00043,4]
[314429401,1708336241385,-1260.38,0.00043,4]
[314429402,1708336241394,-1260.38,0.00043,4]
[314429403,1708336241403,-1260.38,0.00043,4]
[314429404,1708336241412,-1260.38,0.00043,4]
[314429405,1708336241420,-1260.38,0.00043,4]
[314429406,1708336241432,-1260.38,0.00043,4]
[314429407,1708336241445,-152.81,0.00043,4]
[314429408,1708336241453,-152.81,0.00043,4]
[314429409,1708336241462,-152.81,0.00043,4]
[314429410,1708336241475,-152.81,0.00043,4]
[314429411,1708336241484,-152.81,0.00043,4]
[314429412,1708336241493,-152.81,0.00043,4]
[314429413,1708336241502,-762.50061311,0.00043036,5]
[314429414,1708336241511,-500.0,0.00043043,7]
[314429415,1708336241520,-500.0,0.00043079,4]
[314429416,1708336241530,-500.0,0.00043079,4]
[314429417,1708336241542,-500.0,0.00043079,4]
[314429418,1708336241551,-500.0,0.00043079,4]
[314429419,1708336241561,-249.73984962,0.00043079,4]
[314429420,1708336241571,-500.0,0.00043079,4]
[314429421,1708336241581,-500.0,0.00043079,4]
[314429422,1708336241591,-500.0,0.00043079,4]
[314429423,1708336241600,-532.78,0.00043079,4]
[314429424,1708336241610,-1040.17,0.00043079,4]
[314429425,1708336241619,-1040.17,0.00043079,4]
[314429426,1708336241628,-1040.17,0.00043079,4]
[314429427,1708336241638,-431.65838697,0.00043079,4]
[314429428,1708336241647,-500.0,0.00043079,4]
[314429429,1708336241656,-500.0,0.00043079,4]
[314429430,1708336241666,-500.0,0.00043079,4]
[314429431,1708336241675,-233.23516517,0.00043079,4]
[314429432,1708336241685,-203.83219719,0.00043079,4]
[314429433,1708336241694,-500.0,0.00043079,4]
[314429434,1708336241703,-500.0,0.00043079,4]
[314429436,1708336241713,-500.0,0.00043079,4]
[314429437,1708336241722,-500.0,0.0004308,4]
[314429438,1708336241731,-500.0,0.0004308,4]
[314429439,1708336241741,-172.67820331,0.0004308,4]
[314429440,1708336241750,-500.0,0.0004308,4]
[314429441,1708336241759,-500.0,0.0004308,4]
[314429442,1708336241769,-482.11888348,0.0004308,4]
[314429443,1708336241778,-500.0,0.0004308,4]
[314429444,1708336241787,-374.4836112,0.0004308,4]
[314429445,1708336241796,-500.0,0.0004308,4]
[314429446,1708336241806,-607.76302433,0.0004308,4]
[314429447,1708336241815,-320.27789519,0.0004308,4]
[314429448,1708336241824,-500.0,0.0004308,4]
[314429449,1708336241834,-332.94381859,0.0004308,4]
[314429450,1708336241843,-500.0,0.0004308,4]
[314429451,1708336241852,-500.0,0.0004308,4]
[314429452,1708336241861,-500.0,0.0004308,4]
[314429453,1708336241870,-500.0,0.0004308,4]
[314429454,1708336241879,-503.55311065,0.0004308,4]
[314429455,1708336241889,-500.0,0.0004308,4]
[314429456,1708336241898,-150.13058998,0.0004308,4]
[314429457,1708336241907,-500.0,0.0004308,4]
[314429458,1708336241917,-500.0,0.0004308,4]
[314429459,1708336241929,-500.0,0.0004308,4]
[314429460,1708336241938,-500.0,0.0004308,4]
[314429461,1708336241947,-500.0,0.0004308,4]
[314429462,1708336241958,-500.0,0.0004308,4]
[314429463,1708336241967,-500.0,0.0004308,4]
[314429464,1708336241977,-500.0,0.0004308,4]
[314429465,1708336241986,-500.0,0.0004308,4]
[314429466,1708336241996,-500.0,0.00043259,7]
[314429467,1708336242006,-150.0,0.00043403,2]
[314429468,1708336242016,-334.06,0.00043433,2]
[314429469,1708336242025,-1298.32,0.00043434,2]
[314429470,1708336242034,-500.0,0.00043475,7]
[314429471,1708336242043,-163.24,0.00043507,2]
[314429472,1708336242052,-500.0,0.00043691,7]
[314429473,1708336242062,-4153.19225443,0.00043737,5]
[314429474,1708336242071,-5000.0,0.000438,120]
[314429475,1708336242080,-865.38,0.000438,12]
[314429476,1708336242090,-4113.0,0.000438,30]
[314429477,1708336242100,-784.0,0.000438,30]
[314429478,1708336242109,-800.0,0.00043835,2]
[314429479,1708336242120,-151.38715637,0.00043836,60]
[314429480,1708336242129,-167.62,0.00043893,30]
[314429481,1708336242139,-500.0,0.00043908,7]
[314429482,1708336242148,-163.12235663,0.00043953,11]
[314429483,1708336242157,-589.5,0.00043985,2]
[314429484,1708336242166,-694.23955416,0.00044031,5]
[314429485,1708336242176,-150.0,0.00044079,2]
[314429486,1708336242185,-150.0,0.00044079,2]
[314429487,1708336242194,-150.0,0.00044079,2]
[314429488,1708336242203,-150.0,0.00044079,2]
[314429489,1708336242213,-200.0,0.000441,2]
[314429490,1708336242222,-1000.0,0.000441,2]
[314429491,1708336242356,-500.0,0.00044124,7]
[314429492,1708336242366,-163.24,0.00044232,2]
[314429493,1708336242375,-500.0,0.0004434,7]
[314429494,1708336242384,-151.38715637,0.00044384,60]
[314429495,1708336242393,-150.0,0.00044412,2]
[314429496,1708336242402,-497.84244818,0.00044459,30]
[314429497,1708336242412,-169.21792893,0.00044459,30]
[314429498,1708336242421,-232.67465227,0.00044459,30]
[314429499,1708336242432,-255.1750504,0.00044459,30]
[314429500,1708336242441,-762.50061311,0.00044508,6]
[314429501,1708336242450,-500.0,0.00044557,7]
[314429502,1708336242459,-800.0,0.00044657,2]
[314429503,1708336242468,-153.30983069,0.00044658,30]
[314429504,1708336242477,-500.0,0.00044773,7]
[314429505,1708336242486,-500.0,0.00044889,30]
[314429506,1708336242496,-500.0,0.00044889,21]
[314429507,1708336242505,-163.24,0.00044957,2]
[314429508,1708336242514,-151.38715637,0.00044959,60]
[314429509,1708336242523,-500.0,0.00044989,7]
[314429510,1708336242532,-405.12230858,0.00045,4]
[314429511,1708336242542,-896.66,0.00045,13]
[314429512,1708336242551,-886.68,0.00045,11]
[314429513,1708336242560,-1298.32,0.00045078,2]
[314429514,1708336242569,-4153.19225443,0.00045106,7]
[314429515,1708336242578,-70445.3132,0.0004514,30]
[314429516,1708336242588,-397103.94192813,0.000452,3]
[314429517,1708336242597,-1000.0,0.000452,15]
[314429518,1708336242606,-1000.0,0.000452,15]
[314429519,1708336242615,-500.0,0.00045205,7]
[314429520,1708336242624,-1849.53051842,0.00045415,35]
[314429521,1708336242634,-632.33529334,0.00045415,35]
[314429522,1708336242643,-2947.71285112,0.00045415,60]
[314429523,1708336242652,-1024.59570583,0.00045415,30]
[314429524,1708336242662,-150.0,0.00045422,2]
[314429525,1708336242671,-500.0,0.00045422,7]
[314429526,1708336242681,-500.0,0.00045437,30]
[314429527,1708336242691,-500.0,0.00045437,21]
[314429528,1708336242700,-800.0,0.00045479,2]
[314429529,1708336242710,-151.38715637,0.00045507,60]
[314429530,1708336242720,-694.23955416,0.0004561,5]
[314429531,1708336242730,-500.0,0.00045638,7]
[314429532,1708336242739,-163.24,0.00045683,2]
[314429533,1708336242748,-152.65879756,0.00045684,10]
[314429534,1708336242758,-352.79,0.000457,2]
[314429535,1708336242767,-269.16,0.00045828,15]
[314429536,1708336242777,-500.0,0.00045854,7]
[314429537,1708336242787,-319.59,0.000459,2]
[314429538,1708336242796,-380.0,0.000459,2]
[314429539,1708336242805,-380.0,0.000459,2]
[314429540,1708336242815,-380.0,0.000459,2]
[314429541,1708336242824,-380.0,0.000459,2]
[314429543,1708336242834,-380.0,0.000459,2]
[314429544,1708336242843,-380.0,0.000459,2]
[314429545,1708336242853,-380.0,0.000459,2]
[314429546,1708336242862,-381.67,0.000459,2]
[314429547,1708336242872,-21002.0,0.000459,30]
[314429548,1708336242882,-762.50061311,0.00045981,7]
[314429549,1708336242892,-500.0,0.00045985,30]
[314429551,1708336242901,-534.98475747,0.00045985,21]
[314429552,1708336242912,-1000.0,0.00046,30]
[314429553,1708336242929,-50277.78829618,0.00046,5]
[314429554,1708336242938,-1000.0,0.00046,17]
[314429555,1708336242948,-1000.0,0.00046,17]
[314429557,1708336242958,-500.0,0.00046071,7]
[314429558,1708336242968,-151.38715637,0.00046082,60]
[314429559,1708336242977,-333.55242931,0.000462,2]
[314429561,1708336242987,-589.5,0.00046249,2]
[314429562,1708336242997,-150.0,0.00046283,2]
[314429563,1708336243007,-500.0,0.00046287,7]
[314429564,1708336243017,-800.0,0.00046301,2]
[314429565,1708336243026,-150.0,0.00046401,2]
[314429566,1708336243036,-163.24,0.00046408,2]
[314429567,1708336243045,-163.12235663,0.00046426,12]
[314429568,1708336243056,-150.0,0.00046431,2]
[314429569,1708336243066,-150.0,0.00046453,2]
[314429570,1708336243077,-4153.19225443,0.00046476,8]
[314429571,1708336243088,-500.0,0.00046503,7]
[314429572,1708336243098,-500.0,0.00046533,30]
[314429573,1708336243108,-150.0,0.00046652,7]
[314429574,1708336243118,-150.0,0.00046671,7]
[314429575,1708336243128,-500.0,0.0004672,7]
[314429576,1708336243138,-150.0,0.00046761,7]
[314429577,1708336243148,-150.0,0.00046783,7]
[314429578,1708336243158,-150.0,0.00046847,7]
[314429579,1708336243167,-150.0,0.00046867,7]
[314429580,1708336243177,-246.68512293,0.000469,15]
[314429581,1708336243186,-150.0,0.0004691,7]
[314429582,1708336243196,-150.0,0.00046914,7]
[314429583,1708336243206,-150.0,0.00046919,7]
[314429584,1708336243216,-500.0,0.00046936,7]
[314429585,1708336243226,-1500.0,0.00046963,7]
[314429586,1708336243236,-150.0,0.00046972,7]
[314429587,1708336243246,-75708.4186766,0.0004699,11]
[314429588,1708336243256,-728.0,0.00047,120]
[314429589,1708336243265,-150.0,0.00047,2]
[314429590,1708336243274,-1550.56,0.00047,120]
[314429591,1708336243284,-1354.17821965,0.00047,60]
[314429592,1708336243294,-1020.0,0.00047,30]
[314429593,1708336243304,-354.86,0.00047,2]
[314429594,1708336243313,-3000.0,0.00047,2]
[314429595,1708336243323,-3000.0,0.00047,2]
[314429596,1708336243332,-3000.0,0.00047,2]
[314429597,1708336243342,-6999.999999,0.00047,60]
[314429598,1708336243351,-150.0,0.00047,5]
[314429599,1708336243360,-250.0,0.00047,2]
[314429600,1708336243369,-150.0,0.00047006,7]
[314429601,1708336243379,-150.0,0.00047011,7]
[314429602,1708336243389,-150.0,0.00047041,7]
[314429603,1708336243398,-835.42,0.00047042,2]
[314429604,1708336243407,-150.0,0.00047079,2]
[314429605,1708336243416,-150.0,0.00047079,2]
[314429606,1708336243426,-500.0,0.00047081,30]
[314429607,1708336243436,-1260.38,0.000471,5]
[314429610,1708336243445,-1260.38,0.000471,5]
[314429612,1708336243455,-1260.38,0.000471,5]
[314429613,1708336243465,-1260.38,0.000471,5]
[314429614,1708336243474,-1260.38,0.000471,5]
[314429615,1708336243485,-1260.38,0.000471,5]
[314429616,1708336243494,-1260.38,0.000471,5]
[314429617,1708336243503,-1260.38,0.000471,5]
[314429618,1708336243513,-1260.38,0.000471,5]
[314429619,1708336243522,-1260.38,0.000471,5]
[314429620,1708336243531,-1260.38,0.000471,5]
[314429621,1708336243542,-1260.38,0.000471,5]
[314429622,1708336243551,-1260.38,0.000471,5]
[314429623,1708336243561,-1260.38,0.000471,5]
[314429624,1708336243570,-1260.38,0.000471,5]
[314429625,1708336243579,-1260.38,0.000471,5]
[314429626,1708336243589,-1260.38,0.000471,5]
[314429627,1708336243598,-1260.38,0.000471,5]
[314429628,1708336243608,-1260.38,0.000471,5]
[314429629,1708336243617,-1260.38,0.000471,5]
[314429630,1708336243626,-152.81,0.000471,5]
[314429631,1708336243636,-152.81,0.000471,5]
[314429632,1708336243645,-152.81,0.000471,5]
[314429633,1708336243654,-152.81,0.000471,5]
[314429634,1708336243664,-152.81,0.000471,5]
[314429635,1708336243674,-152.81,0.000471,5]
[314429636,1708336243683,-800.0,0.00047123,2]
[314429637,1708336243692,-217.21120188,0.00047123,120]
[314429638,1708336243701,-150.0,0.00047124,7]
[314429639,1708336243710,-163.24,0.00047133,2]
[314429640,1708336243720,-500.0,0.00047152,7]
[314429641,1708336243729,-150.0,0.00047161,7]
[314429642,1708336243738,-694.23955416,0.00047189,5]
[314429643,1708336243748,-150.0,0.0004729,7]
[314429644,1708336243757,-150.0,0.00047366,7]
[314429645,1708336243766,-500.0,0.00047368,7]
[314429646,1708336243775,-1500.0,0.00047386,7]
[314429647,1708336243784,-1536.62434998,0.00047391,7]
[314429648,1708336243793,-1500.0,0.00047399,7]
[314429649,1708336243803,-293.09344812,0.000474,60]
[314429650,1708336243812,-3136.91101157,0.00047405,60]
[314429651,1708336243820,-150.0,0.0004744,2]
[314429652,1708336243830,-150.0,0.0004745,7]
[314429653,1708336243839,-762.50061311,0.00047454,9]
[314429654,1708336243848,-150.0,0.00047464,7]
[314429655,1708336243857,-301.75168261,0.00047469,7]
[314429656,1708336243866,-164.58,0.00047469,2]
[314429657,1708336243875,-150.0,0.00047491,7]
[314429658,1708336243885,-2075.0,0.000475,30]
[314429659,1708336243894,-1016.0,0.000475,120]
[314429660,1708336243904,-150.0,0.00047504,7]
[314429661,1708336243915,-1224.6712107,0.00047508,2]
[314429662,1708336243926,-207.0,0.00047509,31]
[314429663,1708336243935,-154.91269219,0.0004752,2]
[314429664,1708336243944,-150.0,0.00047527,7]
[314429665,1708336243954,-151.40588202,0.00047548,7]
[314429666,1708336243963,-150.0,0.00047548,5]
[314429667,1708336243972,-500.0,0.00047585,7]
[314429668,1708336243981,-200.0,0.000476,22]
[314429669,1708336243992,-150.0,0.00047602,7]
[314429670,1708336244001,-150.0,0.00047625,7]
[314429671,1708336244010,-150.0,0.00047626,7]
[314429672,1708336244020,-500.0,0.00047629,30]
[314429673,1708336244029,-150.0,0.00047652,7]
[314429674,1708336244038,-150.0,0.00047673,7]
[314429675,1708336244048,-1224.6712107,0.00047673,2]
[314429676,1708336244057,-500.0,0.00047699,4]
[314429677,1708336244066,-500.0,0.00047699,4]
[314429678,1708336244075,-1040.17,0.00047699,4]
[314429679,1708336244085,-500.0,0.00047699,4]
[314429680,1708336244094,-40000.0,0.000477,30]
[314429681,1708336244104,-788.86128876,0.000477,120]
[314429682,1708336244113,-300.0,0.00047703,7]
[314429683,1708336244122,-150.0,0.00047709,7]
[314429684,1708336244132,-150.0,0.00047738,7]
[314429685,1708336244142,-154.421242,0.00047739,36]
[314429686,1708336244151,-167.94697078,0.00047746,4]
[314429687,1708336244160,-571.44056179,0.00047746,4]
[314429688,1708336244170,-500.0,0.00047746,4]
[314429689,1708336244180,-161.97383477,0.00047746,4]
[314429690,1708336244190,-500.0,0.00047746,4]
[314429691,1708336244199,-500.0,0.00047746,4]
[314429692,1708336244209,-500.0,0.00047746,4]
[314429693,1708336244218,-176.04057519,0.00047746,4]
[314429694,1708336244228,-179.73649252,0.00047746,4]
[314429695,1708336244237,-500.0,0.00047746,4]
[314429696,1708336244246,-500.0,0.00047746,4]
[314429697,1708336244256,-500.0,0.00047746,4]
[314429698,1708336244265,-428.14632553,0.00047746,4]
[314429699,1708336244275,-500.0,0.00047746,4]
[314429700,1708336244285,-500.0,0.00047746,4]
[314429701,1708336244294,-500.0,0.00047746,4]
[314429702,1708336244303,-509.36,0.00047746,4]
[314429703,1708336244313,-500.0,0.00047746,4]
[314429704,1708336244322,-500.0,0.00047746,4]
[314429705,1708336244331,-500.0,0.00047746,4]
[314429706,1708336244341,-223.54,0.00047746,4]
[314429707,1708336244350,-500.0,0.00047746,4]
[314429708,1708336244359,-500.0,0.00047746,4]
[314429709,1708336244368,-500.0,0.00047746,4]
[314429710,1708336244377,-500.0,0.00047746,4]
[314429711,1708336244386,-500.0,0.00047746,4]
[314429712,1708336244395,-500.0,0.00047746,4]
[314429713,1708336244405,-588.51671279,0.00047746,4]
[314429714,1708336244415,-500.0,0.00047746,4]
[314429715,1708336244423,-594.14605706,0.00047746,4]
[314429716,1708336244433,-500.0,0.00047746,4]
[314429717,1708336244443,-500.0,0.00047746,4]
[314429718,1708336244452,-500.0,0.00047746,4]
[314429719,1708336244462,-360.0,0.0004776,12]
[314429720,1708336244471,-2003.4231,0.0004776,5]
[314429721,1708336244480,-2005.7863,0.0004776,5]
[314429722,1708336244489,-360.0,0.0004776,12]
[314429723,1708336244499,-3226.0,0.0004779,3]
[314429724,1708336244509,-286.0,0.0004779,3]
[314429725,1708336244522,-500.0,0.00047801,7]
[314429726,1708336244531,-150.0,0.00047812,7]
[314429727,1708336244542,-150.0,0.00047818,7]
[314429728,1708336244551,-4153.19225443,0.00047845,9]
[314429729,1708336244561,-163.24,0.00047858,2]
[314429730,1708336244570,-75708.4186766,0.00047879,11]
[314429731,1708336244579,-5000.0,0.0004788,7]
[314429732,1708336244588,-46433.00853,0.0004788,30]
[314429733,1708336244598,-1871.30631412,0.0004788,2]
[314429734,1708336244607,-451.87856626,0.00047889,2]
[314429735,1708336244616,-150.0,0.00047893,7]
[314429736,1708336244626,-1379.96886351,0.00047899,23]
[314429737,1708336244635,-500.0,0.00047899,2]
[314429738,1708336244644,-500.0,0.00047899,2]
[314429739,1708336244654,-500.0,0.00047899,2]
[314429740,1708336244704,-600.70331353,0.00047899,4]
[314429741,1708336244713,-500.0,0.00047899,4]
[314429742,1708336244723,-500.0,0.00047899,4]
[314429743,1708336244732,-500.0,0.00047899,4]
[314429744,1708336244742,-518.4705962,0.00047899,4]
[314429745,1708336244751,-505.71393901,0.00047899,4]
[314429746,1708336244760,-500.0,0.00047899,4]
[314429747,1708336244770,-533.5923081,0.00047899,4]
[314429748,1708336244779,-547.96715968,0.00047899,4]
[314429749,1708336244788,-526.05549379,0.00047899,4]
[314429750,1708336244797,-498.77572806,0.00047899,4]
[314429751,1708336244806,-154.10401135,0.00047899,4]
[314429752,1708336244815,-544.33519178,0.00047899,4]
[314429753,1708336244824,-516.47671873,0.00047899,4]
[314429754,1708336244834,-252.18104136,0.00047899,4]
[314429755,1708336244843,-220.95680819,0.00047899,4]
[314429756,1708336244853,-245.37967262,0.00047899,4]
[314429757,1708336244862,-214.78381777,0.00047899,4]
[314429758,1708336244871,-253.95804957,0.00047899,4]
[314429759,1708336244880,-500.0,0.00047899,4]
[314429760,1708336244889,-297.68637393,0.00047899,4]
[314429761,1708336244899,-6763.16311804,0.00047899,2]
[314429762,1708336244908,-187.71270086,0.00047899,4]
[314429763,1708336244921,-579.06342686,0.00047899,4]
[314429764,1708336244930,-545.92682318,0.00047899,4]
[314429765,1708336244939,-500.0,0.00047899,4]
[314429766,1708336244948,-584.30718198,0.00047899,4]
[314429767,1708336244959,-590.68830002,0.00047899,4]
[314429768,1708336244968,-561.25756537,0.00047899,4]
[314429769,1708336244977,-603.90398254,0.00047899,4]
[314429770,1708336244986,-583.31802427,0.00047899,4]
[314429771,1708336244995,-168.35085208,0.000479,2]
[314429772,1708336245004,-312.51780327,0.000479,43]
[314429773,1708336245014,-1001.28955524,0.000479,2]
[314429774,1708336245023,-404.93272787,0.000479,2]
[314429775,1708336245033,-300.0,0.000479,8]
[314429776,1708336245042,-919.5895588,0.000479,8]
[314429777,1708336245051,-300.0,0.000479,8]
[314429778,1708336245061,-1279.859308,0.0004794,22]
[314429779,1708336245070,-800.0,0.00047945,2]
[314429780,1708336245080,-1000.0,0.0004796,22]
[314429781,1708336245089,-1500.0,0.00047963,7]
[314429782,1708336245099,-500.0,0.00047969,4]
[314429783,1708336245108,-500.0,0.00047969,4]
[314429784,1708336245117,-1040.17,0.00047969,4]
[314429785,1708336245127,-500.0,0.00047969,4]
[314429786,1708336245136,-75708.4186766,0.00047969,11]
[314429787,1708336245146,-75708.4186766,0.0004797,11]
[314429788,1708336245155,-500.0,0.0004797,2]
[314429789,1708336245164,-500.0,0.0004797,2]
[314429790,1708336245174,-150.5,0.0004797,30]
[314429791,1708336245184,-150.5,0.0004797,3]
[314429792,1708336245194,-150.5,0.0004797,120]
[314429793,1708336245203,-150.0,0.00047976,7]
[314429794,1708336245214,-500.0,0.00047979,4]
[314429795,1708336245223,-592.34,0.00047979,4]
[314429796,1708336245232,-500.0,0.00047979,4]
[314429797,1708336245242,-500.0,0.00047979,4]
[314429798,1708336245251,-1040.17,0.00047979,4]
[314429799,1708336245260,-1040.17,0.00047979,4]
[314429800,1708336245269,-500.0,0.00047979,4]
[314429801,1708336245279,-368.02281755,0.00047979,4]
[314429802,1708336245289,-75708.4186766,0.0004798,11]
[314429803,1708336245299,-150.5,0.0004798,30]
[314429804,1708336245308,-150.5,0.0004798,3]
[314429805,1708336245317,-1000.0,0.0004798,22]
[314429806,1708336245326,-150.5,0.0004798,120]
[314429807,1708336245335,-151416.837353,0.0004798,11]
[314429808,1708336245345,-309.41428571,0.0004798,2]
[314429809,1708336245354,-172.56286795,0.00047989,4]
[314429810,1708336245363,-570.87159326,0.00047989,4]
[314429811,1708336245373,-500.0,0.00047989,4]
[314429812,1708336245382,-482.66887626,0.00047989,4]
[314429813,1708336245391,-500.0,0.00047989,4]
[314429814,1708336245400,-224.30125086,0.00047989,4]
[314429815,1708336245410,-500.0,0.00047989,4]
[314429816,1708336245419,-500.0,0.00047989,4]
[314429817,1708336245429,-195.78034027,0.00047989,4]
[314429818,1708336245439,-253.66101768,0.00047989,4]
[314429819,1708336245448,-500.0,0.00047989,4]
[314429820,1708336245458,-323.84865742,0.00047989,4]
[314429821,1708336245467,-540.67854189,0.00047989,4]
[314429822,1708336245476,-573.60476712,0.00047989,4]
[314429823,1708336245486,-516.27742481,0.00047989,4]
[314429824,1708336245496,-525.46323436,0.00047989,4]
[314429825,1708336245505,-227.26778001,0.00047989,4]
[314429826,1708336245515,-250.0,0.00047989,7]
[314429827,1708336245524,-500.0,0.00047989,4]
[314429828,1708336245533,-500.0,0.00047989,4]
[314429829,1708336245543,-500.0,0.00047989,4]
[314429830,1708336245552,-500.0,0.00047989,4]
[314429831,1708336245561,-500.0,0.00047989,4]
[314429832,1708336245570,-500.0,0.00047989,4]
[314429833,1708336245579,-648.4,0.00047989,4]
[314429834,1708336245589,-500.0,0.00047989,4]
[314429835,1708336245598,-500.0,0.00047989,4]
[314429836,1708336245607,-500.0,0.00047989,4]
[314429837,1708336245616,-500.0,0.00047989,4]
[314429838,1708336245625,-391.58,0.00047989,4]
[314429839,1708336245634,-5250.0,0.0004799,29]
[314429840,1708336245643,-150.5,0.0004799,3]
[314429841,1708336245652,-150.5,0.0004799,30]
[314429842,1708336245662,-159.34,0.0004799,120]
[314429843,1708336245671,-150.5,0.0004799,120]
[314429844,1708336245681,-853.0,0.0004799,2]
[314429845,1708336245690,-150.01,0.00047993,2]
[314429846,1708336245699,-3319.32799788,0.00047993,2]
[314429847,1708336245708,-60723.29940749,0.00047999,30]
[314429848,1708336245717,-500.0,0.00047999,4]
[314429849,1708336245727,-500.0,0.00047999,4]
[314429850,1708336245737,-500.0,0.00047999,4]
[314429851,1708336245746,-500.0,0.00047999,4]
[314429852,1708336245755,-500.0,0.00047999,4]
[314429853,1708336245764,-500.0,0.00047999,4]
[314429854,1708336245774,-500.0,0.00047999,4]
[314429855,1708336245783,-500.0,0.00047999,4]
[314429856,1708336245792,-260.86,0.00047999,4]
[314429857,1708336245801,-1040.17,0.00047999,4]
[314429858,1708336245810,-1040.17,0.00047999,4]
[314429859,1708336245820,-1040.17,0.00047999,4]
[314429860,1708336245829,-1040.17,0.00047999,4]
[314429861,1708336245838,-1040.17,0.00047999,4]
[314429862,1708336245847,-1040.17,0.00047999,4]
[314429863,1708336245856,-1040.17,0.00047999,4]
[314429864,1708336245865,-500.0,0.00047999,4]
[314429865,1708336245874,-1040.17,0.00047999,4]
[314429866,1708336245884,-500.0,0.00047999,4]
[314429867,1708336245893,-500.0,0.00047999,4]
[314429868,1708336245903,-500.0,0.00047999,4]
[314429869,1708336245915,-500.0,0.00047999,4]
[314429870,1708336245928,-1040.17,0.00047999,4]
[314429871,1708336245937,-327.29349163,0.00047999,4]
[314429872,1708336245947,-1040.17,0.00047999,4]
[314429873,1708336245956,-1040.17,0.00047999,4]
[314429874,1708336245966,-1040.17,0.00047999,4]
[314429875,1708336245975,-1040.17,0.00047999,4]
[314429876,1708336245985,-1040.17,0.00047999,4]
[314429877,1708336245995,-1040.17,0.00047999,4]
[314429878,1708336246004,-1040.17,0.00047999,4]
[314429879,1708336246013,-1040.33,0.00047999,4]
[314429880,1708336246023,-249.69408,0.00047999,40]
[314429881,1708336246033,-238.47377814,0.00047999,7]
[314429882,1708336246043,-329.68069906,0.00047999,7]
[314429883,1708336246052,-238.47377814,0.00047999,7]
[314429884,1708336246061,-329.68069906,0.00047999,7]
[314429885,1708336246071,-329.68069906,0.00047999,7]
[314429886,1708336246080,-238.47377814,0.00047999,7]
[314429887,1708336246090,-329.68069906,0.00047999,7]
[314429888,1708336246099,-238.47377814,0.00047999,7]
[314429890,1708336246108,-238.47377814,0.00047999,7]
[314429892,1708336246118,-329.68069906,0.00047999,7]
[314429894,1708336246126,-843.23182138,0.00048,3]
[314429896,1708336246134,-253177.82552955,0.00048,90]
[314429898,1708336246143,-300.0,0.00048,26]
[314429900,1708336246153,-155.192624,0.00048,2]
[314429902,1708336246162,-358.99,0.00048,2]
[314429904,1708336246171,-30000.0,0.00048,13]
[314429906,1708336246182,-2064.759095,0.00048,120]
[314429908,1708336246190,-3442.58774555,0.00048,60]
[314429910,1708336246199,-1117.60718186,0.00048,120]
[314429912,1708336246209,-266.0,0.00048,2]
[314429913,1708336246218,-227.77086929,0.00048,10]
[314429914,1708336246227,-10000.0,0.00048,5]
[314429915,1708336246237,-111882.18620153,0.00048,30]
[314429916,1708336246367,-11129.9312,0.00048,30]
[314429917,1708336246379,-280.6520522,0.00048,30]